[Event "Titled Tuesday Blitz May 31 Early 2022"]
[White "Macovei, Andrei"]
[Black "Suich, Peter D"]
[WhiteFideId "13904680"]
[BlackFideId "2050366"]
[WhiteElo "2472"]
[BlackElo "2413"]
[Result "1/2-1/2"]
[Round "02"]
[TimeControl "180+1"]
[Date "2022.06.01"]
[WhiteClock "0:00:13"]
[BlackClock "0:00:13"]

1. e4 {[%clk 0:03:00]}  c5 {[%clk 0:02:59]} 2. Nf3 {[%clk 0:02:55]}  Nc6 {[%clk 0:03:00]} 3. d4 {[%clk 0:02:54]}  cxd4 {[%clk 0:03:01]} 4. Nxd4 {[%clk 0:02:55]}  Nf6 {[%clk 0:03:01]} 5. Nc3 {[%clk 0:02:55]}  e5 {[%clk 0:03:02]} 6. Ndb5 {[%clk 0:02:55]}  d6 {[%clk 0:03:03]} 7. Bg5 {[%clk 0:02:55]}  a6 {[%clk 0:03:03]} 8. Na3 {[%clk 0:02:53]}  Be6 {[%clk 0:03:04]} 9. Nc4 {[%clk 0:02:52]}  Rb8 {[%clk 0:03:04]} 10. a4 {[%clk 0:02:51]}  Nb4 {[%clk 0:03:03]} 11. Ne3 {[%clk 0:02:49]}  Be7 {[%clk 0:02:59]} 12. Bxf6 {[%clk 0:02:00]}  Bxf6 {[%clk 0:03:00]} 13. Ncd5 {[%clk 0:01:56]}  Nxd5 {[%clk 0:02:41]} 14. Nxd5 {[%clk 0:01:57]}  O-O {[%clk 0:02:24]} 15. Bc4 {[%clk 0:01:49]}  b5 {[%clk 0:02:23]} 16. axb5 {[%clk 0:01:49]}  axb5 {[%clk 0:02:24]} 17. Bb3 {[%clk 0:01:49]}  g6 {[%clk 0:02:13]} 18. O-O {[%clk 0:01:48]}  Bg7 {[%clk 0:02:13]} 19. Ra6 {[%clk 0:01:44]}  Re8 {[%clk 0:01:53]} 20. Qe2 {[%clk 0:01:38]}  Ra8 {[%clk 0:01:46]} 21. Qxb5 {[%clk 0:01:31]}  Rxa6 {[%clk 0:01:37]} 22. Qxa6 {[%clk 0:01:32]}  f5 {[%clk 0:01:28]} 23. exf5 {[%clk 0:01:21]}  gxf5 {[%clk 0:01:29]} 24. Rd1 {[%clk 0:01:22]}  Qb8 {[%clk 0:01:09]} 25. h3 {[%clk 0:00:49]}  Kh8 {[%clk 0:00:59]} 26. Qe2 {[%clk 0:00:43]}  e4 {[%clk 0:00:55]} 27. Nf4 {[%clk 0:00:33]}  Bxb3 {[%clk 0:00:52]} 28. cxb3 {[%clk 0:00:34]}  Be5 {[%clk 0:00:51]} 29. Nd5 {[%clk 0:00:28]}  Qxb3 {[%clk 0:00:51]} 30. Qh5 {[%clk 0:00:22]}  Rf8 {[%clk 0:00:51]} 31. Ne7 {[%clk 0:00:20]}  Qe6 {[%clk 0:00:48]} 32. Nd5 {[%clk 0:00:20]}  Bxb2 {[%clk 0:00:37]} 33. Qe2 {[%clk 0:00:19]}  Be5 {[%clk 0:00:36]} 34. Qb5 {[%clk 0:00:19]}  Rg8 {[%clk 0:00:32]} 35. Qe2 {[%clk 0:00:19]}  Qg6 {[%clk 0:00:31]} 36. Qf1 {[%clk 0:00:19]}  Qg7 {[%clk 0:00:31]} 37. Kh1 {[%clk 0:00:19]}  f4 {[%clk 0:00:31]} 38. Re1 {[%clk 0:00:18]}  f3 {[%clk 0:00:29]} 39. g4 {[%clk 0:00:12]}  Qf7 {[%clk 0:00:24]} 40. Qc4 {[%clk 0:00:11]}  h5 {[%clk 0:00:20]} 41. Qxe4 {[%clk 0:00:11]}  hxg4 {[%clk 0:00:18]} 42. Rg1 {[%clk 0:00:11]}  g3 {[%clk 0:00:17]} 43. fxg3 {[%clk 0:00:11]}  f2 {[%clk 0:00:17]} 44. Rf1 {[%clk 0:00:11]}  Rxg3 {[%clk 0:00:17]} 45. Qh4+ {[%clk 0:00:11]}  Qh7 {[%clk 0:00:17]} 46. Qxh7+ {[%clk 0:00:11]}  Kxh7 {[%clk 0:00:18]} 47. h4 {[%clk 0:00:08]}  Rh3+ {[%clk 0:00:18]} 48. Kg2 {[%clk 0:00:08]}  Rh2+ {[%clk 0:00:19]} 49. Kf3 {[%clk 0:00:08]}  Rxh4 {[%clk 0:00:19]} 50. Rxf2 {[%clk 0:00:08]}  Rh3+ {[%clk 0:00:20]} 51. Ke4 {[%clk 0:00:09]}  Rh4+ {[%clk 0:00:20]} 52. Kf5 {[%clk 0:00:09]}  Rh5+ {[%clk 0:00:21]} 53. Ke6 {[%clk 0:00:10]}  Rh6+ {[%clk 0:00:21]} 54. Kd7 {[%clk 0:00:10]}  Rg6 {[%clk 0:00:20]} 55. Ne7 {[%clk 0:00:10]}  Rg7 {[%clk 0:00:20]} 56. Ke6 {[%clk 0:00:10]}  Kh6 {[%clk 0:00:19]} 57. Rf1 {[%clk 0:00:10]}  Rg2 {[%clk 0:00:14]} 58. Nf5+ {[%clk 0:00:10]}  Kg5 {[%clk 0:00:13]} 59. Ne3 {[%clk 0:00:10]}  Rg3 {[%clk 0:00:13]} 60. Nd5 {[%clk 0:00:11]}  Rg1 {[%clk 0:00:12]} 61. Rf5+ {[%clk 0:00:11]}  Kg4 {[%clk 0:00:12]} 62. Rf8 {[%clk 0:00:12]}  Rg3 {[%clk 0:00:12]} 63. Ne7 {[%clk 0:00:11]}  Kh3 {[%clk 0:00:13]} 64. Nf5 {[%clk 0:00:11]}  Kg2 {[%clk 0:00:14]} 65. Nxg3 {[%clk 0:00:11]}  Kxg3 {[%clk 0:00:14]} 66. Kd5 {[%clk 0:00:11]}  Kg4 {[%clk 0:00:14]} 67. Ke4 {[%clk 0:00:11]}  Kg5 {[%clk 0:00:15]} 68. Rf5+ {[%clk 0:00:11]}  Kg6 {[%clk 0:00:15]} 69. Rf1 {[%clk 0:00:12]}  Kg5 {[%clk 0:00:15]} 70. Rg1+ {[%clk 0:00:12]}  Kf6 {[%clk 0:00:15]} 71. Rg2 {[%clk 0:00:13]}  Ke6 {[%clk 0:00:16]} 72. Rg6+ {[%clk 0:00:13]}  Kd7 {[%clk 0:00:17]} 73. Kd5 {[%clk 0:00:13]}  Ke7 {[%clk 0:00:16]} 74. Rh6 {[%clk 0:00:14]}  Kf7 {[%clk 0:00:16]} 75. Ke4 {[%clk 0:00:13]}  Kg7 {[%clk 0:00:16]} 76. Re6 {[%clk 0:00:13]}  Kf7 {[%clk 0:00:14]} 77. Kf5 {[%clk 0:00:14]}  Kg7 {[%clk 0:00:13]} 78. Re7+ {[%clk 0:00:14]}  Kf8 {[%clk 0:00:13]} 79. Rb7 {[%clk 0:00:13]}  Ke8 {[%clk 0:00:11]} 80. Ke6 {[%clk 0:00:14]}  Kd8 {[%clk 0:00:12]} 81. Kd5 {[%clk 0:00:13]}  Kc8 {[%clk 0:00:13]} 82. Kc6 {[%clk 0:00:14]}  Kd8 {[%clk 0:00:12]} 83. Ra7 {[%clk 0:00:14]}  Ke8 {[%clk 0:00:13]} 84. Kd5 {[%clk 0:00:14]}  Kd8 {[%clk 0:00:13]} 85. Rh7 {[%clk 0:00:12]}  Ke8 {[%clk 0:00:13]} 86. Ke6 {[%clk 0:00:12]}  Kd8 {[%clk 0:00:14]} 87. Rh4 {[%clk 0:00:07]}  Kc7 {[%clk 0:00:14]} 88. Rc4+ {[%clk 0:00:08]}  Kb6 {[%clk 0:00:14]} 89. Kd5 {[%clk 0:00:08]}  Kb5 {[%clk 0:00:14]} 90. Rc8 {[%clk 0:00:09]}  Kb4 {[%clk 0:00:14]} 91. Rb8+ {[%clk 0:00:09]}  Kc3 {[%clk 0:00:13]} 92. Ke4 {[%clk 0:00:09]}  Kc4 {[%clk 0:00:12]} 93. Rc8+ {[%clk 0:00:09]}  Kb5 {[%clk 0:00:12]} 94. Kd5 {[%clk 0:00:10]}  Kb6 {[%clk 0:00:13]} 95. Rc6+ {[%clk 0:00:10]}  Kb7 {[%clk 0:00:13]} 96. Rc2 {[%clk 0:00:11]}  Kb6 {[%clk 0:00:13]} 97. Rc1 {[%clk 0:00:10]}  Kb7 {[%clk 0:00:13]} 98. Ke6 {[%clk 0:00:10]}  Kb6 {[%clk 0:00:12]} 99. Kd5 {[%clk 0:00:09]}  Kb7 {[%clk 0:00:12]} 100. Rd1 {[%clk 0:00:10]}  Kb6 {[%clk 0:00:13]} 101. Rb1+ {[%clk 0:00:10]}  Kc7 {[%clk 0:00:13]} 102. Rb3 {[%clk 0:00:11]}  Kd7 {[%clk 0:00:13]} 103. Rb7+ {[%clk 0:00:11]}  Kc8 {[%clk 0:00:13]} 104. Kc6 {[%clk 0:00:11]}  Kd8 {[%clk 0:00:14]} 105. Ra7 {[%clk 0:00:11]}  Ke8 {[%clk 0:00:14]} 106. Rd7 {[%clk 0:00:11]}  Kf8 {[%clk 0:00:14]} 107. Kd5 {[%clk 0:00:11]}  Ke8 {[%clk 0:00:14]} 108. Ke6 {[%clk 0:00:12]}  Kf8 {[%clk 0:00:13]} 109. Re7 {[%clk 0:00:13]}  Kg8 {[%clk 0:00:11]} 110. Rd7 {[%clk 0:00:13]}  Kf8 {[%clk 0:00:12]} 111. Rd8+ {[%clk 0:00:13]}  Kg7 {[%clk 0:00:12]} 112. Kf5 {[%clk 0:00:13]}  Kf7 {[%clk 0:00:12]} 113. Rd7+ {[%clk 0:00:14]}  Ke8 {[%clk 0:00:13]} 114. Ke6 {[%clk 0:00:13]}  Kf8 {[%clk 0:00:13]} 1/2-1/2


[Site "https://www.chess.com"]

[Event "Titled Tuesday Blitz May 31 Early 2022"]
[White "Makarian, Rudik"]
[Black "Maksimenko, Viktor"]
[WhiteFideId "44105681"]
[BlackFideId "13710478"]
[WhiteElo "2419"]
[BlackElo "2269"]
[Result "1-0"]
[Round "02"]
[TimeControl "180+1"]
[Date "2022.06.01"]
[WhiteClock "0:00:03"]
[BlackClock "0:00:01"]

1. d3 {[%clk 0:03:00]}  Nf6 {[%clk 0:02:59]} 2. g3 {[%clk 0:02:57]}  d5 {[%clk 0:02:57]} 3. f4 {[%clk 0:02:56]}  c5 {[%clk 0:02:52]} 4. Nf3 {[%clk 0:02:55]}  Nc6 {[%clk 0:02:53]} 5. Bg2 {[%clk 0:02:53]}  g6 {[%clk 0:02:53]} 6. O-O {[%clk 0:02:52]}  Bg7 {[%clk 0:02:53]} 7. Nc3 {[%clk 0:02:53]}  O-O {[%clk 0:02:49]} 8. a3 {[%clk 0:02:52]}  Re8 {[%clk 0:02:47]} 9. e4 {[%clk 0:02:35]}  Bg4 {[%clk 0:02:33]} 10. e5 {[%clk 0:02:35]}  Nd7 {[%clk 0:02:24]} 11. h3 {[%clk 0:02:25]}  Bxf3 {[%clk 0:02:23]} 12. Bxf3 {[%clk 0:02:25]}  e6 {[%clk 0:02:23]} 13. Kh2 {[%clk 0:02:15]}  Rb8 {[%clk 0:02:23]} 14. g4 {[%clk 0:02:14]}  b5 {[%clk 0:02:17]} 15. g5 {[%clk 0:02:15]}  a5 {[%clk 0:02:16]} 16. Ne2 {[%clk 0:02:13]}  Qc7 {[%clk 0:02:09]} 17. Kg2 {[%clk 0:02:12]}  b4 {[%clk 0:02:05]} 18. h4 {[%clk 0:02:12]}  a4 {[%clk 0:01:49]} 19. h5 {[%clk 0:02:07]}  Nb6 {[%clk 0:01:41]} 20. Rh1 {[%clk 0:02:04]}  c4 {[%clk 0:01:38]} 21. d4 {[%clk 0:02:04]}  c3 {[%clk 0:01:35]} 22. bxc3 {[%clk 0:02:01]}  b3 {[%clk 0:01:20]} 23. cxb3 {[%clk 0:01:51]}  axb3 {[%clk 0:01:21]} 24. Qxb3 {[%clk 0:01:50]}  Nc4 {[%clk 0:01:22]} 25. Qd1 {[%clk 0:01:48]}  N6a5 {[%clk 0:01:19]} 26. Ra2 {[%clk 0:01:23]}  Rb1 {[%clk 0:01:04]} 27. Qg1 {[%clk 0:01:09]}  Reb8 {[%clk 0:01:03]} 28. hxg6 {[%clk 0:01:08]}  hxg6 {[%clk 0:01:02]} 29. Kg3 {[%clk 0:01:03]}  Nb3 {[%clk 0:01:00]} 30. Qh2 {[%clk 0:00:56]}  Nxc1 {[%clk 0:00:59]} 31. Rxc1 {[%clk 0:00:55]}  R1b2 {[%clk 0:00:58]} 32. Rxb2 {[%clk 0:00:51]}  Rxb2 {[%clk 0:00:58]} 33. Qg1 {[%clk 0:00:49]}  Qb6 {[%clk 0:00:51]} 34. a4 {[%clk 0:00:39]}  Bf8 {[%clk 0:00:40]} 35. Qe1 {[%clk 0:00:29]}  Nd2 {[%clk 0:00:39]} 36. Qd1 {[%clk 0:00:21]}  Nc4 {[%clk 0:00:31]} 37. Rc2 {[%clk 0:00:18]}  Rb1 {[%clk 0:00:29]} 38. Rc1 {[%clk 0:00:16]}  Rb2 {[%clk 0:00:29]} 39. a5 {[%clk 0:00:16]}  Nxa5 {[%clk 0:00:26]} 40. Qa4 {[%clk 0:00:16]}  Nc4 {[%clk 0:00:25]} 41. Ra1 {[%clk 0:00:13]}  Qb8 {[%clk 0:00:17]} 42. Qd7 {[%clk 0:00:12]}  Rb7 {[%clk 0:00:16]} 43. Qc6 {[%clk 0:00:13]}  Rc7 {[%clk 0:00:15]} 44. Qa8 {[%clk 0:00:12]}  Qxa8 {[%clk 0:00:10]} 45. Rxa8 {[%clk 0:00:13]}  Ne3 {[%clk 0:00:10]} 46. Kf2 {[%clk 0:00:12]}  Nd1+ {[%clk 0:00:11]} 47. Ke1 {[%clk 0:00:12]}  Nxc3 {[%clk 0:00:12]} 48. Ng3 {[%clk 0:00:08]}  Nb5 {[%clk 0:00:11]} 49. Ne2 {[%clk 0:00:07]}  Kg7 {[%clk 0:00:11]} 50. Kf2 {[%clk 0:00:07]}  Rc4 {[%clk 0:00:08]} 51. Ke3 {[%clk 0:00:07]}  Nc3 {[%clk 0:00:08]} 52. Ng3 {[%clk 0:00:05]}  Bb4 {[%clk 0:00:08]} 53. Be2 {[%clk 0:00:05]}  Nxe2 {[%clk 0:00:07]} 54. Nxe2 {[%clk 0:00:06]}  Bf8 {[%clk 0:00:07]} 55. Rb8 {[%clk 0:00:06]}  Ra4 {[%clk 0:00:07]} 56. Rb7 {[%clk 0:00:05]}  Ra3+ {[%clk 0:00:07]} 57. Kf2 {[%clk 0:00:06]}  Ra4 {[%clk 0:00:07]} 58. Ke3 {[%clk 0:00:05]}  Ra3+ {[%clk 0:00:08]} 59. Kd2 {[%clk 0:00:06]}  Ra4 {[%clk 0:00:08]} 60. Kd3 {[%clk 0:00:06]}  Ra3+ {[%clk 0:00:09]} 61. Nc3 {[%clk 0:00:07]}  Kg8 {[%clk 0:00:10]} 62. Rb8 {[%clk 0:00:07]}  Kg7 {[%clk 0:00:09]} 63. Kc2 {[%clk 0:00:07]}  Ra1 {[%clk 0:00:08]} 64. Ne2 {[%clk 0:00:06]}  Re1 {[%clk 0:00:08]} 65. Kd2 {[%clk 0:00:06]}  Ra1 {[%clk 0:00:08]} 66. Ke3 {[%clk 0:00:06]}  Ra3+ {[%clk 0:00:08]} 67. Kf2 {[%clk 0:00:07]}  Ra2 {[%clk 0:00:09]} 68. Rb7 {[%clk 0:00:06]}  Kg8 {[%clk 0:00:06]} 69. Rd7 {[%clk 0:00:05]}  Kg7 {[%clk 0:00:06]} 70. Rb7 {[%clk 0:00:04]}  Kg8 {[%clk 0:00:07]} 71. Rb5 {[%clk 0:00:05]}  Kg7 {[%clk 0:00:07]} 72. Rb8 {[%clk 0:00:06]}  Kg8 {[%clk 0:00:06]} 73. Ke3 {[%clk 0:00:06]}  Ra3+ {[%clk 0:00:06]} 74. Kd2 {[%clk 0:00:07]}  Ra2+ {[%clk 0:00:06]} 75. Ke3 {[%clk 0:00:06]}  Ra3+ {[%clk 0:00:07]} 76. Kf2 {[%clk 0:00:07]}  Kg7 {[%clk 0:00:07]} 77. Ng1 {[%clk 0:00:06]}  Rd3 {[%clk 0:00:06]} 78. Nf3 {[%clk 0:00:06]}  Rc3 {[%clk 0:00:05]} 79. Ke2 {[%clk 0:00:06]}  Ra3 {[%clk 0:00:05]} 80. Rb7 {[%clk 0:00:05]}  Ra2+ {[%clk 0:00:05]} 81. Ke3 {[%clk 0:00:05]}  Ra3+ {[%clk 0:00:06]} 82. Kf2 {[%clk 0:00:06]}  Ra2+ {[%clk 0:00:05]} 83. Kg3 {[%clk 0:00:06]}  Ra4 {[%clk 0:00:06]} 84. Kg4 {[%clk 0:00:05]}  Bb4 {[%clk 0:00:04]} 85. f5 {[%clk 0:00:02]}  gxf5+ {[%clk 0:00:04]} 86. Kh5 {[%clk 0:00:03]}  Ra1 {[%clk 0:00:03]} 87. Rxb4 {[%clk 0:00:02]}  Rh1+ {[%clk 0:00:03]} 88. Nh4 {[%clk 0:00:03]}  Kg8 {[%clk 0:00:01]} 89. Rb8+ {[%clk 0:00:03]}  Kg7 {[%clk 0:00:02]} 90. Rb7 {[%clk 0:00:04]}  f4 {[%clk 0:00:02]} 91. g6 {[%clk 0:00:04]}  f3 {[%clk 0:00:02]} 92. Rxf7+ {[%clk 0:00:04]}  Kg8 {[%clk 0:00:03]} 93. Rxf3 {[%clk 0:00:05]}  Rh2 {[%clk 0:00:04]} 94. Kg5 {[%clk 0:00:05]}  Rh1 {[%clk 0:00:04]} 95. Rf4 {[%clk 0:00:05]}  Rg1+ {[%clk 0:00:04]} 96. Kh6 {[%clk 0:00:05]}  Rh1 {[%clk 0:00:03]} 97. g7 {[%clk 0:00:04]}  Rf1 {[%clk 0:00:02]} 98. Ng6 {[%clk 0:00:03]}  Rxf4 {[%clk 0:00:01]} 99. Nxf4 {[%clk 0:00:03]} 1-0


[Site "https://www.chess.com"]

[Event "Titled Tuesday Blitz May 31 Early 2022"]
[White "Maltsevskaya, Aleksandra"]
[Black "Onslow, Alfie"]
[WhiteFideId "24174041"]
[BlackFideId "436976"]
[WhiteElo "2235"]
[BlackElo "1885"]
[Result "1-0"]
[Round "02"]
[TimeControl "180+1"]
[Date "2022.06.01"]
[WhiteClock "0:00:10"]
[BlackClock "0:00:02"]

1. e4 {[%clk 0:02:43]}  g6 {[%clk 0:02:59]} 2. d4 {[%clk 0:02:43]}  Bg7 {[%clk 0:02:59]} 3. Nf3 {[%clk 0:02:43]}  c6 {[%clk 0:02:59]} 4. h4 {[%clk 0:02:25]}  h5 {[%clk 0:02:56]} 5. Nc3 {[%clk 0:02:23]}  d5 {[%clk 0:02:56]} 6. exd5 {[%clk 0:02:21]}  cxd5 {[%clk 0:02:56]} 7. Bg5 {[%clk 0:02:21]}  Bg4 {[%clk 0:02:54]} 8. Bb5+ {[%clk 0:02:12]}  Nc6 {[%clk 0:02:54]} 9. O-O {[%clk 0:02:13]}  Nf6 {[%clk 0:02:51]} 10. Re1 {[%clk 0:02:02]}  O-O {[%clk 0:02:45]} 11. Bxc6 {[%clk 0:01:55]}  bxc6 {[%clk 0:02:45]} 12. Na4 {[%clk 0:01:55]}  Ne4 {[%clk 0:02:37]} 13. c3 {[%clk 0:01:49]}  Nxg5 {[%clk 0:02:14]} 14. hxg5 {[%clk 0:01:41]}  h4 {[%clk 0:02:08]} 15. Qd3 {[%clk 0:01:39]}  h3 {[%clk 0:02:01]} 16. Ne5 {[%clk 0:01:39]}  Bf5 {[%clk 0:01:59]} 17. Qg3 {[%clk 0:01:37]}  hxg2 {[%clk 0:01:44]} 18. Kxg2 {[%clk 0:01:38]}  Qd6 {[%clk 0:01:25]} 19. b3 {[%clk 0:01:36]}  f6 {[%clk 0:01:05]} 20. gxf6 {[%clk 0:00:48]}  exf6 {[%clk 0:01:06]} 21. Nf3 {[%clk 0:00:37]}  Qxg3+ {[%clk 0:00:58]} 22. Kxg3 {[%clk 0:00:38]}  Rfe8 {[%clk 0:00:46]} 23. Nc5 {[%clk 0:00:37]}  Bf8 {[%clk 0:00:41]} 24. Nh4 {[%clk 0:00:32]}  Bd6+ {[%clk 0:00:19]} 25. Kf3 {[%clk 0:00:31]}  Bxc5 {[%clk 0:00:10]} 26. Nxf5 {[%clk 0:00:27]}  Bf8 {[%clk 0:00:11]} 27. Nh4 {[%clk 0:00:19]}  Kf7 {[%clk 0:00:12]} 28. b4 {[%clk 0:00:19]}  Bd6 {[%clk 0:00:10]} 29. a3 {[%clk 0:00:19]}  Rh8 {[%clk 0:00:09]} 30. Rh1 {[%clk 0:00:17]}  Rh5 {[%clk 0:00:09]} 31. Ng2 {[%clk 0:00:17]}  Rah8 {[%clk 0:00:09]} 32. Rxh5 {[%clk 0:00:15]}  Rxh5 {[%clk 0:00:10]} 33. Ne3 {[%clk 0:00:16]}  Rh3+ {[%clk 0:00:09]} 34. Kg2 {[%clk 0:00:16]}  Rh2+ {[%clk 0:00:09]} 35. Kf3 {[%clk 0:00:17]}  f5 {[%clk 0:00:09]} 36. c4 {[%clk 0:00:15]}  dxc4 {[%clk 0:00:05]} 37. Nxc4 {[%clk 0:00:16]}  Bc7 {[%clk 0:00:05]} 38. Rc1 {[%clk 0:00:13]}  g5 {[%clk 0:00:06]} 39. Ne3 {[%clk 0:00:11]}  Rh3+ {[%clk 0:00:06]} 40. Kg2 {[%clk 0:00:12]}  Rh2+ {[%clk 0:00:05]} 41. Kg1 {[%clk 0:00:12]}  Bf4 {[%clk 0:00:05]} 42. Rxc6 {[%clk 0:00:10]}  Rh5 {[%clk 0:00:03]} 43. Nxf5 {[%clk 0:00:10]}  g4 {[%clk 0:00:03]} 44. Ng3 {[%clk 0:00:10]}  Rd5 {[%clk 0:00:03]} 45. Ne2 {[%clk 0:00:09]}  Bd2 {[%clk 0:00:02]} 46. Rc7+ {[%clk 0:00:09]}  Ke6 {[%clk 0:00:02]} 47. Rxa7 {[%clk 0:00:10]}  Kf5 {[%clk 0:00:03]} 48. Re7 {[%clk 0:00:10]}  Bf4 {[%clk 0:00:01]} 49. Nxf4 {[%clk 0:00:10]}  Kxf4 {[%clk 0:00:02]} 50. Rf7+ {[%clk 0:00:09]}  Ke4 {[%clk 0:00:02]} 51. Rg7 {[%clk 0:00:09]}  Kf3 {[%clk 0:00:02]} 52. Rf7+ {[%clk 0:00:09]}  Ke4 {[%clk 0:00:03]} 53. Kg2 {[%clk 0:00:09]}  Rxd4 {[%clk 0:00:03]} 54. b5 {[%clk 0:00:10]}  Ra4 {[%clk 0:00:02]} 55. f3+ {[%clk 0:00:08]}  gxf3+ {[%clk 0:00:02]} 56. Rxf3 {[%clk 0:00:08]}  Kd4 {[%clk 0:00:01]} 57. Rf4+ {[%clk 0:00:09]}  Kc5 {[%clk 0:00:01]} 58. Rxa4 {[%clk 0:00:10]}  Kxb5 {[%clk 0:00:02]} 59. Rg4 {[%clk 0:00:10]} 1-0


[Site "https://www.chess.com"]

[Event "Titled Tuesday Blitz May 31 Early 2022"]
[White "Molina, Roberto Junio Brito"]
[Black "Al-Tarboush, Ward"]
[WhiteFideId "2109450"]
[BlackFideId "7601450"]
[WhiteElo "2432"]
[BlackElo "2294"]
[Result "1-0"]
[Round "02"]
[TimeControl "180+1"]
[Date "2022.05.31"]
[WhiteClock "0:00:20"]
[BlackClock "0:01:27"]

1. d4 {[%clk 0:03:00]}  d5 {[%clk 0:02:59]} 2. c4 {[%clk 0:02:59]}  c6 {[%clk 0:02:59]} 3. Nf3 {[%clk 0:02:59]}  Nf6 {[%clk 0:02:59]} 4. Nc3 {[%clk 0:02:58]}  dxc4 {[%clk 0:02:59]} 5. a4 {[%clk 0:02:58]}  Bf5 {[%clk 0:02:59]} 6. Ne5 {[%clk 0:02:58]}  Nbd7 {[%clk 0:02:59]} 7. Nxc4 {[%clk 0:02:58]}  Nb6 {[%clk 0:02:58]} 8. Ne5 {[%clk 0:02:56]}  a5 {[%clk 0:02:58]} 9. f3 {[%clk 0:02:54]}  Nfd7 {[%clk 0:02:58]} 10. Nxd7 {[%clk 0:02:54]}  Nxd7 {[%clk 0:02:56]} 11. e4 {[%clk 0:02:55]}  Bg6 {[%clk 0:02:56]} 12. Be3 {[%clk 0:02:55]}  Qb6 {[%clk 0:02:56]} 13. Qd2 {[%clk 0:02:54]}  e5 {[%clk 0:02:56]} 14. dxe5 {[%clk 0:02:46]}  Bc5 {[%clk 0:02:56]} 15. Bxc5 {[%clk 0:02:43]}  Nxc5 {[%clk 0:02:57]} 16. Bc4 {[%clk 0:02:35]}  Rd8 {[%clk 0:02:54]} 17. Qe2 {[%clk 0:02:22]}  O-O {[%clk 0:02:53]} 18. Rd1 {[%clk 0:02:13]}  Rxd1+ {[%clk 0:02:52]} 19. Kxd1 {[%clk 0:02:14]}  Qb4 {[%clk 0:02:45]} 20. Kc2 {[%clk 0:02:05]}  Nxa4 {[%clk 0:02:39]} 21. Nxa4 {[%clk 0:02:05]}  Qxa4+ {[%clk 0:02:40]} 22. Bb3 {[%clk 0:02:05]}  Qb4 {[%clk 0:02:39]} 23. Qc4 {[%clk 0:02:01]}  Qxc4+ {[%clk 0:02:39]} 24. Bxc4 {[%clk 0:02:02]}  b5 {[%clk 0:02:39]} 25. Bd3 {[%clk 0:02:00]}  a4 {[%clk 0:02:34]} 26. f4 {[%clk 0:01:59]}  Re8 {[%clk 0:02:29]} 27. g4 {[%clk 0:01:53]}  h6 {[%clk 0:02:21]} 28. Kd2 {[%clk 0:01:45]}  Bh7 {[%clk 0:02:20]} 29. Ke3 {[%clk 0:01:44]}  g5 {[%clk 0:02:20]} 30. f5 {[%clk 0:01:24]}  Rxe5 {[%clk 0:02:18]} 31. Rc1 {[%clk 0:01:24]}  h5 {[%clk 0:02:08]} 32. h3 {[%clk 0:01:20]}  hxg4 {[%clk 0:02:08]} 33. hxg4 {[%clk 0:01:21]}  Kg7 {[%clk 0:02:08]} 34. Rxc6 {[%clk 0:01:21]}  Bg8 {[%clk 0:02:03]} 35. f6+ {[%clk 0:01:08]}  Kg6 {[%clk 0:02:03]} 36. Kd4 {[%clk 0:01:09]}  Re8 {[%clk 0:01:57]} 37. e5+ {[%clk 0:01:09]}  Kh6 {[%clk 0:01:57]} 38. Rc1 {[%clk 0:01:01]}  Rd8+ {[%clk 0:01:57]} 39. Ke3 {[%clk 0:01:01]}  Rxd3+ {[%clk 0:01:55]} 40. Kxd3 {[%clk 0:01:01]}  Bh7+ {[%clk 0:01:52]} 41. Kc3 {[%clk 0:00:57]}  Be4 {[%clk 0:01:52]} 42. Kb4 {[%clk 0:00:55]}  Bf3 {[%clk 0:01:49]} 43. Rg1 {[%clk 0:00:54]}  Be2 {[%clk 0:01:48]} 44. Rg2 {[%clk 0:00:53]}  Bc4 {[%clk 0:01:46]} 45. Rc2 {[%clk 0:00:50]}  Be6 {[%clk 0:01:45]} 46. Rg2 {[%clk 0:00:43]}  Bc4 {[%clk 0:01:44]} 47. Kc5 {[%clk 0:00:41]}  Kg6 {[%clk 0:01:44]} 48. Rg3 {[%clk 0:00:40]}  Be2 {[%clk 0:01:41]} 49. Kd6 {[%clk 0:00:38]}  b4 {[%clk 0:01:37]} 50. Ke7 {[%clk 0:00:37]}  Bc4 {[%clk 0:01:33]} 51. Re3 {[%clk 0:00:31]}  Be6 {[%clk 0:01:33]} 52. Re4 {[%clk 0:00:30]}  a3 {[%clk 0:01:33]} 53. Rxb4 {[%clk 0:00:29]}  axb2 {[%clk 0:01:33]} 54. Rxb2 {[%clk 0:00:29]}  Bxg4 {[%clk 0:01:33]} 55. Rb8 {[%clk 0:00:24]}  Be6 {[%clk 0:01:32]} 56. Rb6 {[%clk 0:00:23]}  Bc4 {[%clk 0:01:31]} 57. e6 {[%clk 0:00:22]}  g4 {[%clk 0:01:31]} 58. exf7 {[%clk 0:00:21]}  Bxf7 {[%clk 0:01:32]} 59. Rb4 {[%clk 0:00:20]}  Bd5 {[%clk 0:01:27]} 60. Rxg4+ {[%clk 0:00:20]}  Kf5 {[%clk 0:01:27]} 61. Rg1 {[%clk 0:00:20]} 1-0


[Site "https://www.chess.com"]

[Event "Titled Tuesday Blitz May 31 Early 2022"]
[White "Paravyan, David"]
[Black "Chernobay, Artem"]
[WhiteFideId "4194985"]
[BlackFideId "4167406"]
[WhiteElo "2569"]
[BlackElo "2473"]
[Result "1-0"]
[Round "02"]
[TimeControl "180+1"]
[Date "2022.05.31"]
[WhiteClock "0:00:07"]
[BlackClock "0:00:11"]

1. e4 {[%clk 0:02:58]}  e5 {[%clk 0:02:59]} 2. Nf3 {[%clk 0:02:58]}  Nc6 {[%clk 0:02:59]} 3. Nc3 {[%clk 0:02:59]}  Nf6 {[%clk 0:02:58]} 4. d4 {[%clk 0:02:59]}  exd4 {[%clk 0:02:58]} 5. Nxd4 {[%clk 0:02:59]}  Bb4 {[%clk 0:02:59]} 6. Nxc6 {[%clk 0:02:59]}  bxc6 {[%clk 0:03:00]} 7. Bd3 {[%clk 0:02:59]}  d5 {[%clk 0:03:00]} 8. exd5 {[%clk 0:03:00]}  cxd5 {[%clk 0:02:59]} 9. O-O {[%clk 0:03:00]}  O-O {[%clk 0:02:59]} 10. Bg5 {[%clk 0:03:00]}  c6 {[%clk 0:02:55]} 11. Qf3 {[%clk 0:02:59]}  h6 {[%clk 0:02:54]} 12. Bxf6 {[%clk 0:02:59]}  Qxf6 {[%clk 0:02:54]} 13. Qxf6 {[%clk 0:02:59]}  gxf6 {[%clk 0:02:54]} 14. Ne2 {[%clk 0:03:00]}  Rd8 {[%clk 0:02:50]} 15. Nd4 {[%clk 0:02:57]}  Bb7 {[%clk 0:02:45]} 16. c3 {[%clk 0:02:51]}  Bf8 {[%clk 0:02:43]} 17. b4 {[%clk 0:02:50]}  a5 {[%clk 0:02:42]} 18. a3 {[%clk 0:02:45]}  axb4 {[%clk 0:02:09]} 19. axb4 {[%clk 0:02:43]}  c5 {[%clk 0:02:06]} 20. bxc5 {[%clk 0:02:41]}  Bxc5 {[%clk 0:01:59]} 21. Rfb1 {[%clk 0:02:38]}  Rxa1 {[%clk 0:01:54]} 22. Rxa1 {[%clk 0:02:39]}  Ra8 {[%clk 0:01:40]} 23. Rxa8+ {[%clk 0:02:36]}  Bxa8 {[%clk 0:01:40]} 24. Ba6 {[%clk 0:02:33]}  Kf8 {[%clk 0:01:34]} 25. Kf1 {[%clk 0:02:31]}  Ke7 {[%clk 0:01:32]} 26. Nf5+ {[%clk 0:02:26]}  Ke6 {[%clk 0:01:29]} 27. Nxh6 {[%clk 0:02:09]}  d4 {[%clk 0:01:28]} 28. cxd4 {[%clk 0:02:05]}  Bxd4 {[%clk 0:01:25]} 29. Bc4+ {[%clk 0:02:05]}  Ke5 {[%clk 0:01:14]} 30. Nxf7+ {[%clk 0:02:03]}  Kf5 {[%clk 0:01:14]} 31. Bd3+ {[%clk 0:01:42]}  Ke6 {[%clk 0:01:10]} 32. Nh6 {[%clk 0:01:42]}  Bc6 {[%clk 0:01:00]} 33. Nf5 {[%clk 0:01:40]}  Bc5 {[%clk 0:00:59]} 34. h4 {[%clk 0:01:26]}  Kf7 {[%clk 0:00:56]} 35. h5 {[%clk 0:01:24]}  Kg8 {[%clk 0:00:54]} 36. f3 {[%clk 0:01:17]}  Kh8 {[%clk 0:00:51]} 37. Ke2 {[%clk 0:01:15]}  Bd5 {[%clk 0:00:47]} 38. g4 {[%clk 0:01:10]}  Bb6 {[%clk 0:00:46]} 39. Ne7 {[%clk 0:01:08]}  Be6 {[%clk 0:00:42]} 40. Ng6+ {[%clk 0:01:08]}  Kg7 {[%clk 0:00:42]} 41. Nf4 {[%clk 0:01:06]}  Bb3 {[%clk 0:00:41]} 42. Ng2 {[%clk 0:00:47]}  Kh6 {[%clk 0:00:37]} 43. Nh4 {[%clk 0:00:31]}  Be6 {[%clk 0:00:34]} 44. Ng6 {[%clk 0:00:23]}  Bd7 {[%clk 0:00:32]} 45. Kf1 {[%clk 0:00:20]}  f5 {[%clk 0:00:26]} 46. Ne5 {[%clk 0:00:16]}  Bc8 {[%clk 0:00:22]} 47. Bxf5 {[%clk 0:00:08]}  Bxf5 {[%clk 0:00:20]} 48. gxf5 {[%clk 0:00:09]}  Kxh5 {[%clk 0:00:21]} 49. f6 {[%clk 0:00:09]}  Bc5 {[%clk 0:00:11]} 50. Nd7 {[%clk 0:00:07]} 1-0


[Site "https://www.chess.com"]